fUSD/lending_fUSD_20251027
["ID","MTS","AMOUNT","RATE_DAILY","PERIOD"]
[392498741,1761570638365,-2101.28,0.00032684,2]
[392498742,1761570638374,-2830.49,0.00032717,2]
[392498743,1761570638384,-166.66,0.00032773,30]
[392498744,1761570638393,-151.0,0.00032797,2]
[392498745,1761570638402,-151.0,0.00032797,2]
[392498746,1761570638412,-151.0,0.00032797,2]
[392498747,1761570638421,-151.0,0.00032797,2]
[392498748,1761570638430,-151.0,0.00032797,2]
[392498749,1761570638439,-151.0,0.00032797,2]
[392498750,1761570638448,-151.0,0.00032797,2]
[392498751,1761570638458,-151.0,0.00032797,2]
[392498752,1761570638467,-151.0,0.00032797,2]
[392498753,1761570638477,-151.0,0.00032797,2]
[392498754,1761570638487,-151.0,0.00032797,2]
[392498755,1761570638496,-151.0,0.00032797,2]
[392498756,1761570638505,-151.0,0.00032797,2]
[392498757,1761570638514,-151.0,0.00032797,2]
[392498758,1761570638524,-151.0,0.00032797,2]
[392498759,1761570638534,-151.0,0.00032797,2]
[392498760,1761570638544,-151.0,0.00032797,2]
[392498761,1761570638554,-151.0,0.00032797,2]
[392498762,1761570638564,-151.0,0.00032797,2]
[392498763,1761570638573,-14877.89112028,0.00032817,2]
[392498775,1761570640130,-8120.95887972,0.00032817,2]
[392498776,1761570640139,-166.66,0.00032824,14]
[392498777,1761570640149,-153.0,0.00032877,30]
[392498778,1761570640158,-153.0,0.00032877,30]
[392498779,1761570640168,-153.0,0.00032877,30]
[392498780,1761570640177,-153.0,0.00032877,30]
[392498781,1761570640187,-153.0,0.00032877,30]
[392498782,1761570640196,-153.0,0.00032877,30]
[392498783,1761570640287,-153.0,0.00032877,30]
[392498784,1761570640300,-153.0,0.00032877,30]
[392498785,1761570640311,-153.0,0.00032877,30]
[392498786,1761570640321,-153.0,0.00032877,30]
[392498787,1761570640330,-153.0,0.00032877,30]
[392498788,1761570640341,-153.0,0.00032877,30]
[392498789,1761570640352,-153.0,0.00032877,30]
[392498790,1761570640362,-271.6,0.0003289,2]
[392498791,1761570640371,-500.0,0.00033025,5]
[392498792,1761570640382,-517.37453729,0.00033025,2]
[392498793,1761570640391,-500.0,0.00033025,5]
[392498794,1761570640401,-509.4272848,0.00033025,5]
[392498795,1761570640414,-166.68,0.00033098,14]
[392498796,1761570640423,-3921.02,0.00033105,2]
[392498797,1761570640433,-518.7,0.00033165,2]
[392498798,1761570640442,-6819.97,0.00033188,2]
[392498799,1761570640451,-150.0,0.00033253,2]
[392498800,1761570640461,-166.66,0.00033435,30]
[392498801,1761570640471,-168.72,0.00033495,2]
[392498802,1761570640486,-3506.0,0.00033668,7]
[392498803,1761570640495,-255.0,0.0003367,2]
[392498804,1761570640505,-3506.0,0.00033726,2]
[392498805,1761570640515,-255.0,0.00034023,7]
[392498806,1761570640526,-2215.01731965,0.00034026,2]
[392498807,1761570640535,-235.0947623,0.00034072,28]
[392498808,1761570640544,-255.0,0.00034087,2]
[392498809,1761570640554,-166.66,0.00034097,30]
[392498810,1761570640563,-300.0,0.00034252,2]
[392498811,1761570640572,-360.0,0.00034267,3]
[392498812,1761570640582,-9022.93,0.00034649,2]
[392498813,1761570640591,-166.66,0.00034759,30]
[392498814,1761570640600,-153.0,0.00035341,90]
[392498815,1761570640610,-153.0,0.00035341,90]
[392498816,1761570640619,-153.0,0.00035341,90]
[392498817,1761570640629,-34769.81055444,0.00035455,2]
[392498818,1761570640639,-373.06,0.00035566,2]
[392498819,1761570640649,-414.74,0.00035567,2]
[392498820,1761570640659,-414.74,0.00035567,2]
[392498821,1761570640668,-300.0,0.00035622,2]
[392498822,1761570640679,-150.0,0.00035764,7]
[392498823,1761570640690,-168.0,0.00035843,2]
[392498824,1761570640700,-168.0,0.00035894,7]
[392498825,1761570640709,-168.0,0.00035898,2]
[392498827,1761570640719,-168.0,0.00035954,2]
[392498829,1761570640729,-192.12975807,0.00035976,15]
[392498831,1761570640739,-549.0143024,0.00035976,15]
[392498832,1761570640748,-476.05,0.00035977,2]
[392498834,1761570640757,-476.05,0.00035977,2]
[392498835,1761570640767,-476.05,0.00035977,2]
[392498836,1761570640776,-476.05,0.00035977,2]
[392498837,1761570640785,-476.05,0.00035977,2]
[392498838,1761570640794,-476.05,0.00035977,2]
[392498839,1761570640803,-553.95,0.00035977,2]
[392498840,1761570640812,-476.05,0.00035977,2]
[392498841,1761570640821,-476.05,0.00035977,2]
[392498842,1761570640831,-499.99,0.00036261,2]
[392498843,1761570640840,-9999.99,0.00036261,2]
[392498844,1761570640851,-3697.25,0.00036261,2]
[392498845,1761570640861,-617.91,0.00036261,2]
[392498846,1761570640870,-9999.99,0.00036261,2]
[392498847,1761570640881,-150.99,0.00036261,2]
[392498848,1761570640902,-349.9,0.00036388,2]
[392498849,1761570640916,-414.74,0.00036388,2]
[392498850,1761570640935,-150.0,0.00036388,2]
[392498851,1761570640954,-413.9,0.00036388,2]
[392498852,1761570640969,-150.0,0.00036388,2]
[392498853,1761570640985,-150.0,0.00036388,2]
[392498854,1761570641002,-167.37,0.00036388,2]
[392498855,1761570641021,-1202.57,0.00036388,2]
[392498856,1761570641040,-410.37,0.00036388,2]
[392498857,1761570641057,-150.0,0.00036388,2]
[392498858,1761570641073,-829.48,0.00036388,2]
[392498859,1761570641094,-150.0,0.00036388,2]
[392498860,1761570641109,-150.0,0.00036388,2]
[392498861,1761570641123,-2405.14,0.00036388,2]
[392498862,1761570641141,-150.0,0.00036388,2]
[392498863,1761570641153,-150.0,0.00036388,2]
[392498864,1761570641169,-828.64,0.00036388,2]
[392498865,1761570641183,-150.0,0.00036388,2]
[392498866,1761570641195,-150.0,0.00036388,2]
[392498867,1761570641210,-1202.57,0.00036388,2]
[392498868,1761570641225,-150.0,0.00036388,2]
[392498869,1761570641239,-414.74,0.00036388,2]
[392498870,1761570641252,-150.0,0.00036388,2]
[392498871,1761570641266,-150.55,0.00036388,2]
[392498872,1761570641280,-1202.57,0.00036388,2]
[392498873,1761570641294,-150.0,0.00036388,2]
[392498874,1761570641308,-150.0,0.00036388,2]
[392498875,1761570641323,-300.0,0.00036388,2]
[392498876,1761570641336,-150.0,0.00036388,2]
[392498877,1761570641349,-414.74,0.00036388,2]
[392498878,1761570641363,-150.0,0.00036388,2]
[392498879,1761570641378,-414.74,0.00036388,2]
[392498880,1761570641392,-150.0,0.00036388,2]
[392498881,1761570641407,-150.0,0.00036388,2]
[392498882,1761570641423,-1202.57,0.00036388,2]
[392498883,1761570641437,-488.27,0.00036388,2]
[392498884,1761570641451,-150.0,0.00036388,2]
[392498885,1761570641465,-1202.57,0.00036388,2]
[392498886,1761570641483,-150.0,0.00036388,2]
[392498887,1761570641498,-150.0,0.00036388,2]
[392498888,1761570641513,-150.0,0.00036388,2]
[392498889,1761570641530,-150.0,0.00036388,2]
[392498890,1761570641544,-150.0,0.00036388,2]
[392498891,1761570641559,-1202.57,0.00036388,2]
[392498892,1761570641572,-150.0,0.00036388,2]
[392498893,1761570641586,-1202.57,0.00036388,2]
[392498894,1761570641599,-1202.57,0.00036388,2]
[392498895,1761570641614,-150.0,0.00036388,2]
[392498896,1761570641627,-150.0,0.00036388,2]
[392498897,1761570641642,-1202.57,0.00036388,2]
[392498898,1761570641656,-673.76,0.00036388,2]
[392498899,1761570641672,-150.0,0.00036388,2]
[392498900,1761570641685,-150.0,0.00036388,2]
[392498901,1761570641695,-414.74,0.00036388,2]
[392498902,1761570641705,-1202.57,0.00036388,2]
[392498903,1761570641715,-150.0,0.00036388,2]
[392498904,1761570641726,-414.74,0.00036388,2]
[392498905,1761570641735,-150.0,0.00036388,2]
[392498906,1761570641744,-414.74,0.00036388,2]
[392498907,1761570641867,-1202.57,0.00036388,2]
[392498908,1761570641928,-150.0,0.00036388,2]
[392498909,1761570641940,-156.56,0.00036388,2]
[392498910,1761570641949,-150.0,0.00036388,2]
[392498911,1761570641960,-1202.57,0.00036388,2]
[392498912,1761570641970,-150.0,0.00036389,2]
[392498913,1761570641979,-150.0,0.00036389,2]
[392498914,1761570641989,-352.76,0.00036415,2]
[392498915,1761570641999,-150.54,0.00036415,2]
[392498916,1761570642009,-168.61,0.00036415,2]
[392498917,1761570642018,-432.14,0.00036415,2]
[392498918,1761570642027,-851.23,0.00036415,2]
[392498919,1761570642037,-742.03289716,0.00036584,2]
[392498920,1761570642046,-1000.0,0.000366,7]
[392498921,1761570642055,-1000.0,0.000368,7]
[392498922,1761570642063,-222.30702292,0.0003682,2]
[392498923,1761570642073,-6256.34009,0.0003683,2]
[392498924,1761570642082,-1000.0,0.00036837,2]
[392498925,1761570642091,-2500.0,0.00036837,2]
[392498926,1761570642100,-900.00000001,0.000369,50]
[392498927,1761570642109,-176.5,0.00036901,2]
[392498928,1761570642118,-742.03289717,0.00036902,2]
[392498929,1761570642127,-168.72,0.0003692,2]
[392498930,1761570642136,-476.05,0.00036936,2]
[392498931,1761570642145,-476.05,0.00036936,2]
[392498932,1761570642154,-476.05,0.00036936,2]
[392498933,1761570642163,-476.05,0.00036936,2]
[392498934,1761570642173,-476.05,0.00036936,2]
[392498935,1761570642182,-952.1,0.00036936,2]
[392498936,1761570642191,-476.05,0.00036936,2]
[392498937,1761570642200,-476.05,0.00036936,2]
[392498938,1761570642209,-476.05,0.00036936,2]
[392498939,1761570642218,-964.08,0.00036936,2]
[392498940,1761570642227,-476.05,0.00036936,2]
[392498941,1761570642236,-476.05,0.00036936,2]
[392498942,1761570642245,-476.05,0.00036936,2]
[392498943,1761570642254,-697.12,0.00036936,2]
[392498944,1761570642263,-697.12,0.00036936,2]
[392498945,1761570642273,-697.12,0.00036936,2]
[392498946,1761570642282,-697.12,0.00036936,2]
[392498947,1761570642291,-697.12,0.00036936,2]
[392498948,1761570642301,-697.12,0.00036936,2]
[392498949,1761570642310,-697.12,0.00036936,2]
[392498950,1761570642319,-697.12,0.00036936,2]
[392498951,1761570642328,-322.28,0.00036936,2]
[392498952,1761570642337,-697.12,0.00036936,2]
[392498953,1761570642346,-697.12,0.00036936,2]
[392498954,1761570642355,-697.12,0.00036936,2]
[392498955,1761570642365,-697.12,0.00036936,2]
[392498956,1761570642374,-697.12,0.00036936,2]
[392498957,1761570642383,-697.12,0.00036936,2]
[392498958,1761570642393,-697.12,0.00036936,2]
[392498959,1761570642402,-286.32,0.00036937,2]
[392498960,1761570642412,-1394.24,0.00036937,2]
[392498961,1761570642421,-1394.24,0.00036937,2]
[392498962,1761570642431,-697.12,0.00036937,2]
[392498963,1761570642440,-697.12,0.00036937,2]
[392498964,1761570642450,-476.05,0.00036963,2]
[392498965,1761570642459,-476.05,0.00036963,2]
[392498966,1761570642468,-476.05,0.00036963,2]
[392498967,1761570642483,-3979.63433553,0.00036997,2]
[392498968,1761570642493,-1000.0,0.00037,7]
[392498969,1761570642502,-3979.63433553,0.00037008,2]
[392498970,1761570642511,-3979.63433553,0.00037019,2]
[392498971,1761570642520,-168.0,0.00037028,2]
[392498972,1761570642530,-3979.63433553,0.0003703,2]
[392498973,1761570642539,-3979.63433553,0.00037041,2]
[392498974,1761570642551,-3979.63433553,0.00037053,2]
[392498975,1761570642560,-3979.63433553,0.00037064,2]
[392498976,1761570642570,-3979.63433553,0.00037075,2]
[392498977,1761570642579,-3979.63433553,0.00037086,2]
[392498978,1761570642589,-102226.032275,0.00037096,4]
[392498979,1761570642599,-3979.63433553,0.00037097,2]
[392498980,1761570642608,-500.0,0.00037106,28]
[392498981,1761570642617,-500.0,0.00037106,7]
[392498982,1761570642628,-11988.0248,0.00037106,2]
[392498983,1761570642638,-193087.8941,0.00037106,2]
[392498984,1761570642647,-1000.0,0.00037106,2]
[392498985,1761570642656,-5000.0,0.00037106,2]
[392498986,1761570642667,-6185.80989826,0.00037107,2]
[392498987,1761570642676,-17037.6720458,0.00037113,4]
[392498988,1761570642686,-4098.06509268,0.00037123,7]
[392498989,1761570642696,-400.0,0.00037151,7]
[392498990,1761570642706,-500.0,0.00037173,5]
[392498991,1761570642717,-506.93607167,0.00037173,5]
[392498992,1761570642729,-500.0,0.00037173,5]
[392498993,1761570642739,-500.0,0.00037173,5]
[392498994,1761570642749,-454.84471063,0.00037173,5]
[392498995,1761570642759,-17037.6720458,0.00037182,4]
[392498996,1761570642769,-17037.6720458,0.00037186,4]
[392498997,1761570642779,-34075.3440916,0.00037187,4]
[392498998,1761570642789,-150.72,0.00037187,2]
[392498999,1761570642799,-1000.0,0.00037192,2]
[392499000,1761570642809,-14132.3738631,0.00037193,4]
[392499001,1761570642819,-476.74869043,0.00037193,30]
[392499002,1761570642829,-151.0,0.00037194,14]
[392499003,1761570642838,-17037.6720458,0.00037195,4]
[392499004,1761570642848,-14132.3738631,0.00037195,4]
[392499005,1761570642860,-999.0,0.00037196,120]
[392499006,1761570642871,-1206.0,0.00037196,5]
[392499007,1761570642880,-8184.09173362,0.00037196,31]
[392499008,1761570642889,-34769.81055444,0.00037197,2]
[392499009,1761570642897,-34769.81055444,0.00037197,2]
[392499010,1761570642906,-993187.13117965,0.00037197,30]
[392499018,1761570643162,-895.85584663,0.00037197,30]
[392499019,1761570643497,-63.53142387,0.0003339,3]
[392499024,1761570645992,-86.46857613,0.0003339,3]
[392499025,1761570646001,-150.0,0.00035567,2]
[392499026,1761570646010,-414.74,0.00035567,2]
[392499027,1761570646019,-300.0,0.0003563,3]
[392499028,1761570646029,-476.05,0.00035977,2]
[392499029,1761570646038,-1338.0,0.00036388,2]
[392499030,1761570646047,-697.12,0.00036936,2]
[392499031,1761570646055,-60322.08903079,0.00037197,30]
[392499032,1761570646280,-239.98550883,0.00032569,2]
[392499033,1761570646290,-90.38949255,0.00032877,30]
[392499034,1761570646442,-62.61050745,0.00032877,30]
[392499035,1761570646451,-59.64358575,0.00037197,30]
[392499053,1761570767174,169.0,0.00031507,120]
[392499055,1761570847307,195.0,0.00027425,120]
[392499056,1761570847396,195.0,0.00028577,120]
[392499064,1761570904431,195.0,0.00027425,120]
[392499076,1761571019599,250.0,0.00017,2]
[392499078,1761571034700,500.0,0.00037196,60]
[392499079,1761571034965,500.0,0.00037196,60]
[392499080,1761571035182,500.0,0.00037196,60]
[392499081,1761571035420,268.41819062,0.00037196,60]
[392499087,1761571088329,-300.0,0.00019,2]
[392499088,1761571088352,-22.5282868,0.00019,2]
[392499096,1761571208204,-159.60393618,0.00019,2]
[392499097,1761571208226,-36.95965948,0.00019238,2]
[392499098,1761571212376,-178.8455998,0.00019238,2]
[392499099,1761571223228,-409.47,0.00019,2]
[392499120,1761571447940,854.60068492,7.945e-05,2]
[392499121,1761571447961,1754.08721508,7.945e-05,2]
[392499122,1761571448758,-90.53,0.00019,2]
[392499123,1761571448781,-84.19474072,0.00019238,2]
[392499124,1761571448806,-57.6699885,0.00019475,2]
[392499130,1761571507810,4459.19312738,0.00015,2]
[392499131,1761571507834,6213.28034246,0.00015,2]
[392499132,1761571507861,6213.28034246,0.00015,2]
[392499133,1761571507887,6213.28034246,0.00015,2]
[392499134,1761571507912,6213.28034246,0.00015,2]
[392499135,1761571507937,6213.28034246,0.00015,2]
[392499136,1761571507961,6213.28034246,0.00015,2]
[392499137,1761571507985,6213.28034246,0.00015,2]
[392499138,1761571509050,-157.72998468,0.00015,2]
[392499139,1761571511264,-162.56013662,0.00015,2]
[392499140,1761571513391,-333.34042612,0.00015,2]
[392499142,1761571518037,-194.71609691,0.00015,2]
[392499143,1761571519431,10466.03646708,9e-05,2]
[392499144,1761571520180,-230.22874136,0.00015,2]
[392499145,1761571525431,1017.92780406,0.000108,2]
[392499146,1761571525982,-196.77046906,0.00015,2]
[392499148,1761571527383,-371.41704153,0.00015,2]
[392499149,1761571532776,-421.52856242,0.00015,2]
[392499150,1761571535323,-192.19431776,0.00015,2]
[392499151,1761571535385,4951.786642,0.00014925,2]
[392499152,1761571536054,14000.0,9e-05,2]
[392499153,1761571537368,-250.0,0.00015,2]
[392499157,1761571547029,1515.43451734,0.00014999,5]
[392499159,1761571553770,-216.46654041,0.00015,2]
[392499160,1761571555890,-287.53936232,0.00015,2]
[392499161,1761571558380,-223.07563827,0.00015,2]
[392499162,1761571559959,-638.11409223,0.00015,2]
[392499163,1761571562316,1340.90865414,8e-05,2]
[392499165,1761571565085,-183.95421483,0.00015,2]
[392499168,1761571567593,-189.54403419,0.00015,2]
[392499169,1761571568439,166.26085948,0.00037197,60]
[392499171,1761571572429,975.01697145,0.00037197,60]
[392499172,1761571583249,-151.0,0.00014997,2]
[392499173,1761571583273,-151.0,0.00014997,2]
[392499174,1761571583299,-9.57892345,0.00014997,2]
[392499175,1761571585400,-141.42107655,0.00014997,2]
[392499176,1761571585425,-21.49394809,0.00015,2]
[392499178,1761571589000,-359.80456026,0.00015,2]
[392499179,1761571589591,151.9397373,0.00037197,60]
[392499180,1761571590520,-184.73028565,0.00015,2]
[392499181,1761571591963,-279.46189932,0.00015,2]
[392499182,1761571594086,-222.29365977,0.00015,2]
[392499183,1761571597165,-222.41743326,0.00015,2]
[392499184,1761571601352,-269.2122126,0.00015,2]
[392499185,1761571605771,-190.82,0.00015,2]
[392499186,1761571607629,-306.10168251,0.00015,2]
[392499187,1761571608362,321.0,0.00026492,120]
[392499188,1761571608800,321.0,0.00026482,120]
[392499189,1761571609068,-171.24428178,0.00015,2]
[392499190,1761571609238,321.0,0.00026472,120]
[392499192,1761571612571,-171.44,0.00014999,2]
[392499193,1761571617098,5000.00861131,0.000162,5]
[392499195,1761571625248,177.0,0.00014959,2]
[392499196,1761571625880,-300.0,0.00014998,2]
[392499198,1761571635091,-241.1307791,0.00014998,2]
[392499199,1761571638168,200.0,0.00014999,5]
[392499200,1761571642097,-58.8692209,0.00014998,2]
[392499201,1761571642123,-146.51043226,0.00014999,2]
[392499202,1761571643277,-182.04956774,0.00014999,2]
[392499203,1761571643303,-106.21952347,0.00014999,2]
[392499204,1761571646536,-105.15550295,0.00014999,2]
[392499205,1761571646559,-169.37762194,0.00014999,2]
[392499206,1761571648098,-105.09346102,0.00014999,2]
[392499207,1761571648119,-397.5327354,0.00014999,2]
[392499208,1761571648139,-198.54451056,0.00014999,2]
[392499209,1761571648158,-384.44882869,0.00014999,2]
[392499210,1761571648182,-500.0,0.00014999,2]
[392499211,1761571648205,-123.87384351,0.00014999,2]
[392499212,1761571648502,-152.44445967,0.00014999,2]
[392499214,1761571651819,500.0,0.00037197,60]
[392499215,1761571652067,500.0,0.00037197,60]
[392499216,1761571652300,500.0,0.00037197,60]
[392499217,1761571652556,500.0,0.00037197,60]
[392499218,1761571652588,-223.68169682,0.00014999,2]
[392499219,1761571652615,-21.67658132,0.00014999,2]
[392499220,1761571652787,500.0,0.00037197,60]
[392499221,1761571653177,500.0,0.00037197,60]
[392499222,1761571653305,500.0,0.00037197,60]
[392499223,1761571653545,500.0,0.00037197,60]
[392499224,1761571653904,500.0,0.00037197,60]
[392499225,1761571654162,500.0,0.00037197,60]
[392499226,1761571654403,500.0,0.00037197,60]
[392499227,1761571654835,-275.71165504,0.00014999,2]
[392499228,1761571654873,500.0,0.00037197,60]
[392499229,1761571654955,500.0,0.00037197,60]
[392499230,1761571655185,500.0,0.00037197,60]
[392499231,1761571655427,500.0,0.00037197,60]
[392499232,1761571655676,500.0,0.00037197,60]
[392499233,1761571655909,637.24317389,0.00037197,60]
[392499235,1761571657040,-202.61176364,0.00014999,2]
[392499236,1761571657065,-52.49577586,0.00014999,2]
[392499237,1761571673249,-410.75729838,0.00014998,2]
[392499238,1761571675432,-255.07994465,0.00014998,2]
[392499239,1761571678479,-244.63668468,0.00014998,2]
[392499241,1761571680534,-184.79555298,0.00014998,2]
[392499242,1761571682567,-104.73051931,0.00014998,2]
[392499243,1761571682595,-140.16194119,0.00014999,2]
[392499244,1761571685238,-241.43778296,0.00014999,2]
[392499245,1761571686062,582.0,0.00014959,2]
[392499246,1761571686660,-65.90449999,0.00014999,2]
[392499247,1761571686688,-87.14412949,0.00014999,2]
[392499248,1761571688132,-153.0,0.00014999,2]
[392499249,1761571692607,-169.31906304,0.00014999,2]
[392499250,1761571694143,-90.53680747,0.00014999,2]
[392499251,1761571694169,-67.87926967,0.00014999,2]
[392499252,1761571695608,-179.42433632,0.00014999,2]
[392499253,1761571700482,-190.5734794,0.00014999,2]
[392499255,1761571706841,530140.46998501,0.00037197,60]
[392499256,1761571707944,666.80162294,0.00037197,120]
[392499257,1761571708155,500.0,0.00037197,50]
[392499258,1761571708202,124761.94355439,0.00037197,60]
[392499259,1761571714722,341.74,0.0002,120]
[392499260,1761571718146,498.0,0.0003,120]
[392499261,1761571718378,445.62872057,0.00022,120]
[392499262,1761571719078,-62.12291461,0.00014999,2]
[392499263,1761571719105,-111.48633152,0.00014999,2]
[392499264,1761571721095,495.16850151,0.00037197,60]
[392499265,1761571721573,644.28912485,0.0003,120]
[392499266,1761571721725,308.76121276,0.0002465,120]
[392499267,1761571721894,887.79868322,0.0001,2]
[392499268,1761571722325,-229.64887374,0.00014999,2]
[392499269,1761571722759,1227.71348179,0.00037197,60]
[392499270,1761571723198,1181.74284376,0.000271,120]
[392499271,1761571723290,215.00561974,0.00025,120]
[392499272,1761571723928,985.999995,0.0003,120]
[392499273,1761571724914,955.87401209,0.00013699,2]
[392499274,1761571725074,-158.86479474,0.00014999,2]
[392499275,1761571725103,-12.57520526,0.00014999,2]
[392499277,1761571727885,167.91541485,0.000149,2]
[392499278,1761571729054,-199.08758605,0.00014999,2]
[392499279,1761571730568,162.28468988,0.00014899,2]
[392499280,1761571732765,-213.39879437,0.00014999,2]
[392499281,1761571734172,-74.93841432,0.00014999,2]
[392499282,1761571734199,-221.6269759,0.00014999,2]
[392499284,1761571736574,162.28468988,0.000149,2]
[392499285,1761571736848,-165.50962411,0.00014999,2]
[392499286,1761571740484,-112.86339999,0.00014999,2]
[392499287,1761571740511,-150.06994118,0.00014999,2]
[392499288,1761571742781,-160.33130953,0.00014999,2]
[392499289,1761571744939,-189.59874929,0.00014999,2]
[392499290,1761571744971,-120.52930563,0.00014999,2]
[392499291,1761571746082,-379.47069437,0.00014999,2]
[392499292,1761571746106,-500.0,0.00014999,2]
[392499293,1761571746128,-500.0,0.00014999,2]
[392499294,1761571746151,-500.0,0.00014999,2]
[392499295,1761571746173,-500.0,0.00014999,2]
[392499296,1761571746195,-500.0,0.00014999,2]
[392499297,1761571746217,-500.0,0.00014999,2]
[392499298,1761571746240,-500.0,0.00014999,2]
[392499299,1761571746265,-500.0,0.00014999,2]
[392499300,1761571746290,-500.0,0.00014999,2]
[392499301,1761571746312,-500.0,0.00014999,2]
[392499302,1761571746336,-500.0,0.00014999,2]
[392499303,1761571746358,-500.0,0.00014999,2]
[392499304,1761571746381,-500.0,0.00014999,2]
[392499305,1761571746403,-500.0,0.00014999,2]
[392499306,1761571746426,-500.0,0.00014999,2]
[392499307,1761571746449,-500.0,0.00014999,2]
[392499308,1761571746472,-500.0,0.00014999,2]
[392499309,1761571746496,-500.0,0.00014999,2]
[392499310,1761571746519,-500.0,0.00014999,2]
[392499311,1761571746542,-500.0,0.00014999,2]
[392499312,1761571746565,-500.0,0.00014999,2]
[392499313,1761571746587,-500.0,0.00014999,2]
[392499314,1761571746611,-500.0,0.00014999,2]
[392499315,1761571746638,-500.0,0.00014999,2]
[392499316,1761571746660,-500.0,0.00014999,2]
[392499317,1761571746683,-500.0,0.00014999,2]
[392499318,1761571746704,-500.0,0.00014999,2]
[392499319,1761571746726,-500.0,0.00014999,2]
[392499320,1761571746747,-500.0,0.00014999,2]
[392499321,1761571746770,-500.0,0.00014999,2]
[392499322,1761571746916,-500.0,0.00014999,2]
[392499323,1761571746944,-564.09496036,0.00014999,2]
[392499324,1761571746970,-500.0,0.00014999,2]
[392499325,1761571746995,-500.0,0.00014999,2]
[392499326,1761571747017,-500.0,0.00014999,2]
[392499327,1761571747042,-500.0,0.00014999,2]
[392499328,1761571747065,-500.0,0.00014999,2]
[392499329,1761571747086,-500.0,0.00014999,2]
[392499330,1761571747108,-500.0,0.00014999,2]
[392499331,1761571747130,-500.0,0.00014999,2]
[392499332,1761571747156,-500.0,0.00014999,2]
[392499333,1761571747179,-500.0,0.00014999,2]
[392499334,1761571747198,-226.95678527,0.00015,2]
[392499335,1761571747272,-73.04321473,0.00015,2]
[392499336,1761571747297,-195.0,0.00015,2]
[392499337,1761571747321,-161.50393653,0.00015,2]
[392499338,1761571750198,-215537.0742,0.00015,2]
[392499340,1761571753140,-49921.28134,0.00015,2]
[392499341,1761571758234,-25354.47417873,0.00015,2]
[392499342,1761571758264,-4739.46899231,0.00015,2]
[392499344,1761571763143,-8539.69966842,0.00015,2]
[392499345,1761571763855,-299.30068487,0.00015,2]
[392499346,1761571765443,1006.0478373,0.00037197,50]
[392499347,1761571765806,-164.28841629,0.00015,2]
[392499348,1761571767754,-190.82,0.00015,2]
[392499349,1761571769317,-328.30053516,0.00015,2]
[392499350,1761571773094,-431.478466,0.00015,2]
[392499351,1761571774630,-228.4215338,0.00015,2]
[392499352,1761571776165,-232.02522468,0.00015,2]
[392499356,1761571793337,-175.36401277,0.00015,2]
[392499357,1761571796268,1349.3977782,0.00037197,50]
[392499358,1761571797055,-267.13339874,0.00015,2]
[392499359,1761571798690,3894.80815044,0.000149,2]
[392499360,1761571799431,-166.66666668,0.00015,2]
[392499362,1761571801268,-283.51353898,0.00015,2]
[392499363,1761571802959,1000.0,0.0002,7]
[392499364,1761571803606,3894.80815038,0.0001496,2]
[392499365,1761571804617,-169.93632099,0.00014999,2]
[392499366,1761571806040,2422.04,0.0001499,2]